[Event "1st SOA-GM Festival 2024"]
[Site "Bhubaneswar"]
[Date "2024.02.02"]
[Round "8.12"]
[White "Laxman, R.R."]
[Black "John Veny Akkarakaran"]
[Result "1/2-1/2"]
[ECO "E06"]
[WhiteElo "2338"]
[BlackElo "2112"]
[Annotator "RC"]
[PlyCount "97"]
[EventDate "2024.02.01"]
[EventType "swiss"]
[EventCountry "IND"]
[SourceTitle "playchess.com"]
[Source "ChessBase"]
[SourceQuality "1"]
[TimeControl "5400+30"]

1. d4 {[%emt 0:00:04]} e6 {[%emt 0:00:57]} 2. c4 {[%emt 0:00:16]} Nf6 {[%emt 0:00:11]} 3. g3 {[%emt 0:00:04]} d5 {[%emt 0:00:19]} 4. Nf3 {[%emt 0:00:11]} Be7 {[%emt 0:00:21]} 5. Bg2 {[%emt 0:00:06]} O-O {[%emt 0:00:28]} 6. O-O {[%emt 0:00:04]} a5 {[%emt 0:00:27]} 7. Nc3 {[%emt 0:04:39]} c6 {[%emt 0:00:00]} 8. Ne5 {[%emt 0:02:30]} Nfd7 {[%emt 0:03:49]} 9. Nxd7 {[%emt 0:02:48]} Nxd7 {[%emt 0:01:46]} 10. b3 {[%emt 0:00:02]} b6 {[%emt 0:06:22]} 11. cxd5 {[%emt 0:00:54]} cxd5 {[%emt 0:01:56]} 12. Bf4 {[%emt 0:00:57]} Ba6 {[%emt 0:01:21]} 13. a4 {[%emt 0:00:02]} Nf6 {[%emt 0:05:37]} 14. Nb5 {[%emt 0:01:13]} Bxb5 {[%emt 0:04:13]} 15. axb5 {[%emt 0:00:05]} Qd7 {[%emt 0:01:14]} 16. Qd3 {[%emt 0:00:02]} Rac8 {[%emt 0:01:12]} 17. Rfc1 {[%emt 0:00:08]} Bd6 {[%emt 0:11:57]} 18. Bg5 {[%emt 0:02:07]} Ne4 {[%emt 0:02:56]} 19. Be3 {[%emt 0:00:02]} Bb4 {[%emt 0:01:37]} 20. Bxe4 {[%emt 0:00:10]} dxe4 {[%emt 0:00:54]} 21. Qxe4 {[%emt 0:00:02]} Qxb5 {[%emt 0:01:01]} 22. Qg4 {[%emt 0:01:54]} h5 {[%emt 0:06:33]} 23. Qf3 {[%emt 0:00:10]} Qd5 {[%emt 0:02:11]} 24. Qxd5 {[%emt 0:00:07]} exd5 {[%emt 0:00:05]} 25. Kg2 {[%emt 0:00:07]} b5 {[%emt 0:04:46]} 26. Kf3 {[%emt 0:00:05]} Rxc1 {[%emt 0:03:11]} 27. Bxc1 {[%emt 0:00:26]} Rc8 {[%emt 0:01:24]} 28. Ba3 {[%emt 0:00:55]} Rc3+ {[%emt 0:03:48]} 29. e3 {[%emt 0:00:02]} Bxa3 {[%emt 0:06:28]} 30. Rxa3 {[%emt 0:00:01]} a4 {[%emt 0:01:42]} 31. Ke2 {[%emt 0:00:02]} axb3 {[%emt 0:06:53]} 32. Ra8+ {[%emt 0:00:19]} Kh7 {[%emt 0:00:01]} 33. Rb8 {[%emt 0:00:00]} Rc2+ {[%emt 0:04:47]} 34. Kf3 {[%emt 0:00:02]} g5 {[%emt 0:02:07]} 35. h3 {[%emt 0:00:04]} b2 {[%emt 0:02:55]} 36. Rxb5 {[%emt 0:00:37]} f5 {[%emt 0:00:20]} 37. h4 {[%emt 0:04:17]} g4+ {[%emt 0:01:47]} 38. Kf4 {[%emt 0:01:24]} Rxf2+ {[%emt 0:00:18]} 39. Kg5 {[%emt 0:00:02]} Kg7 {[%emt 0:00:53]} 40. Rb7+ {[%emt 0:00:27]} Kf8 {[%emt 0:01:15]} 41. Kxh5 {[%emt 0:00:05]} Rg2 {[%emt 0:01:14]} 42. Kg6 {[%emt 0:00:44]} Rxg3 {[%emt 0:01:08]} 43. Rxb2 {[%emt 0:06:55]} Rxe3 {[%emt 0:00:39]} 44. Kxf5 {[%emt 0:03:49]} g3 {[%emt 0:01:41]} 45. h5 {[%emt 0:02:25]} Kg7 {[%emt 0:00:38]} 46. Kg5 {[%emt 0:00:33]} Re8 {[%emt 0:01:03]} 47. Rg2 {[%emt 0:00:40]} Re3 {[%emt 0:00:44]} 48. Kf4 {[%emt 0:00:13]} Re4+ {[%emt 0:00:05]} 49. Kg5 {[%emt 0:00:07]} 1/2-1/2

[Event "1st SOA-GM Festival 2024"]
[Site "Bhubaneswar"]
[Date "2024.02.02"]
[Round "8.13"]
[White "Abhay Bandewar"]
[Black "Sammed Jaykumar, Shete"]
[Result "0-1"]
[ECO "B39"]
[WhiteElo "2025"]
[BlackElo "2441"]
[Annotator "RC"]
[PlyCount "82"]
[EventDate "2024.02.01"]
[EventType "swiss"]
[EventCountry "IND"]
[SourceTitle "playchess.com"]
[Source "ChessBase"]
[SourceQuality "1"]
[TimeControl "5400+30"]

1. Nf3 {[%emt 0:00:07]} Nf6 {[%emt 0:00:23]} 2. c4 {[%emt 0:00:13]} g6 {[%emt 0:00:08]} 3. Nc3 {[%emt 0:00:53]} Bg7 {[%emt 0:02:28]} 4. e4 {[%emt 0:03:22]} c5 {[%emt 0:01:48]} 5. d4 {[%emt 0:00:50]} cxd4 {[%emt 0:00:11]} 6. Nxd4 {[%emt 0:00:09]} Nc6 {[%emt 0:04:43]} 7. Be3 Ng4 {[%emt 0:09:32]} 8. Nxc6 {[%emt 0:19:13]} Nxe3 {[%emt 0:00:00]} 9. Nd4 {[%emt 0:00:00]} Ng4 10. Nc6 {[%emt 0:01:32]} Ne3 {[%emt 0:02:56]} 11. Nxd8 {[%emt 0:00:35]} Nxd1 {[%emt 0:00:06]} 12. Ne6 {[%emt 0:10:24]} Ne3 {[%emt 0:00:54]} 13. Nd8 Nd1 {[%emt 0:00:06]} 14. Ne6 {[%emt 0:01:00]} Bxc3+ {[%emt 0:11:52]} 15. bxc3 {[%emt 0:01:23]} dxe6 {[%emt 0:01:27]} 16. Rxd1 {[%emt 0:02:40]} Bd7 {[%emt 0:00:59]} 17. Ke2 {[%emt 0:09:05]} e5 {[%emt 0:01:59]} 18. Rd5 {[%emt 0:02:38]} f6 {[%emt 0:06:25]} 19. Ke3 {[%emt 0:00:36]} b6 {[%emt 0:02:06]} 20. Be2 {[%emt 0:45:50]} Rc8 {[%emt 0:00:47]} 21. c5 {[%emt 0:00:00]} Be6 {[%emt 0:13:02]} 22. Ba6 {[%emt 0:00:00]} Rxc5 {[%emt 0:00:30]} 23. Rxc5 {[%emt 0:00:00]} bxc5 {[%emt 0:00:04]} 24. Rb1 {[%emt 0:00:00]} Kf7 {[%emt 0:00:06]} 25. Rb5 {[%emt 0:00:00]} Bxa2 {[%emt 0:00:18]} 26. Rxc5 {[%emt 0:00:00]} Rb8 {[%emt 0:00:12]} 27. Rc7 {[%emt 0:00:00]} Rb2 {[%emt 0:00:32]} 28. Rc5 {[%emt 0:00:00]} Rb8 {[%emt 0:00:28]} 29. Rc7 {[%emt 0:00:00]} Rb2 30. Rxa7 {[%emt 0:00:00]} f5 {[%emt 0:00:40]} 31. exf5 {[%emt 0:00:00]} gxf5 {[%emt 0:00:06]} 32. g3 {[%emt 0:00:00]} f4+ {[%emt 0:02:38]} 33. gxf4 {[%emt 0:00:00]} exf4+ {[%emt 0:00:04]} 34. Kxf4 {[%emt 0:00:00]} Rxf2+ {[%emt 0:00:03]} 35. Kg3 {[%emt 0:00:00]} Rc2 {[%emt 0:00:09]} 36. Rc7 {[%emt 0:00:00]} Bd5 {[%emt 0:00:05]} 37. Bd3 {[%emt 0:00:00]} Rg2+ {[%emt 0:04:01]} 38. Kh3 {[%emt 0:00:00]} Kf6 {[%emt 0:04:44]} 39. Rc5 {[%emt 0:00:00]} Rg5 {[%emt 0:00:53]} 40. Kh4 {[%emt 0:00:00]} h6 {[%emt 0:00:06]} 41. Bc4 {[%emt 0:00:00]} Be6 {[%emt 0:00:54]} 0-1

[Event "1st SOA-GM Festival 2024"]
[Site "Bhubaneswar"]
[Date "2024.02.02"]
[Round "8.14"]
[White "Roneet Das"]
[Black "Namitbir Singh Walia"]
[Result "1/2-1/2"]
[ECO "A45"]
[WhiteElo "2018"]
[BlackElo "2408"]
[Annotator "RC"]
[PlyCount "171"]
[EventDate "2024.02.01"]
[EventType "swiss"]
[EventCountry "IND"]
[SourceTitle "playchess.com"]
[Source "ChessBase"]
[SourceQuality "1"]
[TimeControl "5400+30"]

1. d4 {[%emt 0:00:18]} Nf6 {[%emt 0:00:02]} 2. Bf4 {[%emt 0:00:51]} g6 {[%emt 0:00:10]} 3. Nc3 {[%emt 0:00:26]} d5 {[%emt 0:00:08]} 4. e3 {[%emt 0:00:16]} Bg7 {[%emt 0:00:23]} 5. h4 {[%emt 0:00:16]} h5 {[%emt 0:00:11]} 6. Nf3 {[%emt 0:00:13]} O-O {[%emt 0:00:53]} 7. Ne5 {[%emt 0:00:02]} c5 {[%emt 0:01:12]} 8. Qd2 {[%emt 0:02:03]} cxd4 {[%emt 0:00:37]} 9. exd4 {[%emt 0:00:15]} Nc6 {[%emt 0:00:19]} 10. Nxc6 {[%emt 0:04:27]} bxc6 {[%emt 0:00:06]} 11. Be2 {[%emt 0:00:41]} Bf5 {[%emt 0:04:59]} 12. f3 {[%emt 0:03:17]} Qc8 {[%emt 0:08:22]} 13. Na4 {[%emt 0:04:29]} Nd7 {[%emt 0:04:26]} 14. g4 {[%emt 0:15:01]} hxg4 {[%emt 0:02:49]} 15. h5 {[%emt 0:00:36]} gxf3 {[%emt 0:09:43]} 16. Bxf3 {[%emt 0:00:36]} Nb6 {[%emt 0:10:18]} 17. Nxb6 {[%emt 0:16:16]} axb6 {[%emt 0:10:12]} 18. Qh2 {[%emt 0:04:41]} gxh5 {[%emt 0:10:34]} 19. Kd2 {[%emt 0:02:55]} Bg6 {[%emt 0:07:20]} 20. Bxh5 {[%emt 0:06:41]} Qf5 {[%emt 0:02:44]} 21. Bxg6 {[%emt 0:01:23]} fxg6 {[%emt 0:01:10]} 22. Qh7+ {[%emt 0:04:43]} Kf7 {[%emt 0:00:24]} 23. Be5 {[%emt 0:01:59]} Qf2+ {[%emt 0:01:39]} 24. Kc1 {[%emt 0:01:23]} Rg8 {[%emt 0:01:58]} 25. b3 {[%emt 0:01:52]} Kf8 {[%emt 0:03:18]} 26. Kb2 {[%emt 0:00:21]} Bxe5 {[%emt 0:03:53]} 27. Raf1 {[%emt 0:00:20]} Bxd4+ {[%emt 0:00:08]} 28. Kb1 {[%emt 0:00:04]} Qf6 {[%emt 0:02:28]} 29. Rxf6+ {[%emt 0:01:05]} Bxf6 {[%emt 0:00:01]} 30. Qh3 {[%emt 0:00:52]} Kf7 {[%emt 0:01:47]} 31. Re1 {[%emt 0:00:09]} Rxa2 {[%emt 0:03:27]} 32. Kc1 {[%emt 0:07:10]} Rh8 {[%emt 0:01:30]} 33. Qe6+ {[%emt 0:03:13]} Kg7 {[%emt 0:00:25]} 34. Kd2 {[%emt 0:00:23]} Rh2+ {[%emt 0:01:54]} 35. Re2 {[%emt 0:00:02]} Rxe2+ {[%emt 0:01:26]} 36. Qxe2 {[%emt 0:00:01]} Kf7 {[%emt 0:02:17]} 37. Qg4 {[%emt 0:00:26]} e6 {[%emt 0:00:25]} 38. Qb4 {[%emt 0:00:31]} Ra6 {[%emt 0:00:59]} 39. Qd6 {[%emt 0:00:13]} c5 {[%emt 0:00:20]} 40. Qd7+ {[%emt 0:02:04]} Be7 {[%emt 0:00:20]} 41. Qb7 {[%emt 0:00:05]} Ra1 {[%emt 0:00:30]} 42. Qxb6 {[%emt 0:00:45]} Rf1 {[%emt 0:00:14]} 43. Qc7 {[%emt 0:00:39]} Rf2+ {[%emt 0:00:43]} 44. Kd3 {[%emt 0:00:09]} g5 {[%emt 0:00:28]} 45. c3 {[%emt 0:00:24]} Rf3+ {[%emt 0:00:20]} 46. Kd2 {[%emt 0:00:15]} Rf4 {[%emt 0:01:09]} 47. Qe5 {[%emt 0:00:10]} Re4 {[%emt 0:00:38]} 48. Qh8 {[%emt 0:00:34]} g4 {[%emt 0:00:36]} 49. Qh7+ {[%emt 0:00:19]} Ke8 {[%emt 0:00:22]} 50. Qg8+ {[%emt 0:00:09]} Kd7 {[%emt 0:00:04]} 51. Kd3 {[%emt 0:00:20]} c4+ {[%emt 0:00:22]} 52. bxc4 {[%emt 0:00:45]} Rxc4 {[%emt 0:00:02]} 53. Qb8 {[%emt 0:00:19]} Bf6 {[%emt 0:01:20]} 54. Qa7+ {[%emt 0:02:14]} Ke8 {[%emt 0:00:29]} 55. Qa8+ {[%emt 0:00:45]} Kf7 {[%emt 0:00:16]} 56. Qa7+ {[%emt 0:00:07]} Kg6 {[%emt 0:00:28]} 57. Qd7 {[%emt 0:00:20]} Rxc3+ {[%emt 0:02:34]} 58. Kd2 {[%emt 0:00:06]} Rc4 {[%emt 0:02:04]} 59. Qxe6 {[%emt 0:00:14]} Rd4+ {[%emt 0:00:05]} 60. Kc2 {[%emt 0:00:14]} Kg5 {[%emt 0:00:21]} 61. Qg8+ {[%emt 0:00:43]} Kh4 {[%emt 0:00:46]} 62. Qe6 {[%emt 0:01:06]} Bg5 {[%emt 0:01:05]} 63. Qe5 {[%emt 0:01:56]} Rd2+ {[%emt 0:00:06]} 64. Kc3 {[%emt 0:00:09]} g3 {[%emt 0:00:08]} 65. Qh8+ {[%emt 0:00:14]} Kg4 {[%emt 0:00:11]} 66. Qc8+ {[%emt 0:00:04]} Kf3 {[%emt 0:00:18]} 67. Qf5+ {[%emt 0:00:12]} Bf4 {[%emt 0:00:05]} 68. Qh5+ {[%emt 0:01:08]} Ke3 {[%emt 0:01:09]} 69. Qe8+ {[%emt 0:00:16]} Kf2 {[%emt 0:00:12]} 70. Qf7 {[%emt 0:00:08]} Kf3 {[%emt 0:00:43]} 71. Qh5+ {[%emt 0:00:22]} Kg2 {[%emt 0:00:34]} 72. Qf5 {[%emt 0:00:22]} d4+ {[%emt 0:00:13]} 73. Kc4 {[%emt 0:00:10]} Be3 {[%emt 0:01:29]} 74. Qe4+ {[%emt 0:00:32]} Kf2 {[%emt 0:00:15]} 75. Qf5+ {[%emt 0:00:10]} Ke1 {[%emt 0:00:37]} 76. Qb1+ {[%emt 0:00:40]} Rd1 {[%emt 0:00:19]} 77. Qe4 {[%emt 0:00:25]} Ke2 {[%emt 0:00:42]} 78. Qg4+ {[%emt 0:00:15]} Kd2 {[%emt 0:01:18]} 79. Qxg3 {[%emt 0:00:56]} Rc1+ {[%emt 0:00:01]} 80. Kd5 {[%emt 0:00:21]} d3 {[%emt 0:00:14]} 81. Qh2+ {[%emt 0:00:26]} Kc3 {[%emt 0:00:23]} 82. Qe5+ {[%emt 0:00:29]} Kd2 {[%emt 0:00:18]} 83. Qh2+ {[%emt 0:00:04]} Kc3 {[%emt 0:01:27]} 84. Qe5+ {[%emt 0:00:02]} Kd2 {[%emt 0:00:01]} 85. Qh2+ {[%emt 0:00:01]} Kc3 {[%emt 0:00:30]} 86. Ke4 {[%emt 0:20:52]} 1/2-1/2

[Event "1st SOA-GM Festival 2024"]
[Site "Bhubaneswar"]
[Date "2024.02.02"]
[Round "8.15"]
[White "Gonzales, Jayson"]
[Black "Vrashank Chouhan"]
[Result "1-0"]
[ECO "D02"]
[WhiteElo "2367"]
[BlackElo "2046"]
[Annotator "RC"]
[PlyCount "199"]
[EventDate "2024.02.01"]
[EventType "swiss"]
[EventCountry "IND"]
[SourceTitle "playchess.com"]
[Source "ChessBase"]
[SourceQuality "1"]
[TimeControl "5400+30"]

1. d4 {[%emt 1:31:00]} d5 {[%emt 0:03:33]} 2. Nf3 {[%emt 0:00:00]} Nf6 {[%emt 0:00:07]} 3. g3 {[%emt 0:00:00]} c5 {[%emt 0:02:59]} 4. c3 {[%emt 0:00:00]} e6 {[%emt 0:03:53]} 5. Bg2 {[%emt 0:00:00]} Be7 {[%emt 0:00:32]} 6. O-O {[%emt 0:00:00]} O-O {[%emt 0:00:06]} 7. Bg5 {[%emt 0:00:00]} Nbd7 {[%emt 0:03:13]} 8. Nbd2 {[%emt 0:00:00]} h6 {[%emt 0:04:19]} 9. Bxf6 {[%emt 0:00:00]} Nxf6 {[%emt 0:00:47]} 10. dxc5 {[%emt 0:00:00]} Bxc5 {[%emt 0:00:17]} 11. c4 {[%emt 0:00:00]} Re8 {[%emt 0:05:46]} 12. cxd5 {[%emt 0:00:00]} exd5 {[%emt 0:01:06]} 13. Nb3 {[%emt 0:00:00]} Bb6 {[%emt 0:00:34]} 14. Nbd4 {[%emt 0:00:00]} Bg4 {[%emt 0:02:33]} 15. Qd3 {[%emt 0:00:00]} Qd7 {[%emt 0:08:40]} 16. Rad1 {[%emt 0:00:00]} h5 {[%emt 0:04:10]} 17. Rd2 {[%emt 0:00:00]} Rac8 {[%emt 0:07:19]} 18. Rc2 {[%emt 0:00:00]} Rxc2 {[%emt 0:03:03]} 19. Qxc2 {[%emt 0:00:00]} h4 {[%emt 0:00:58]} 20. Rd1 {[%emt 0:00:00]} hxg3 {[%emt 0:04:19]} 21. hxg3 {[%emt 0:00:00]} Ne4 {[%emt 0:01:07]} 22. Qd3 {[%emt 0:00:00]} Bf5 {[%emt 0:09:40]} 23. Qb3 {[%emt 0:00:00]} Bh3 {[%emt 0:02:58]} 24. e3 {[%emt 0:03:12]} Bg4 {[%emt 0:06:43]} 25. Qd3 {[%emt 0:03:54]} Qe7 {[%emt 0:01:58]} 26. Rf1 {[%emt 0:01:06]} Qf6 {[%emt 0:01:55]} 27. Nh2 {[%emt 0:02:03]} Bd7 {[%emt 0:01:10]} 28. Nhf3 {[%emt 0:00:38]} Qh6 {[%emt 0:02:16]} 29. Re1 {[%emt 0:00:53]} g5 {[%emt 0:05:43]} 30. Nc2 {[%emt 0:01:27]} Qf6 {[%emt 0:00:21]} 31. Nb4 {[%emt 0:00:59]} g4 {[%emt 0:02:01]} 32. Nxd5 {[%emt 0:00:13]} Qf5 {[%emt 0:00:01]} 33. Nxb6 {[%emt 0:00:17]} axb6 {[%emt 0:00:19]} 34. Qd1 {[%emt 0:01:17]} gxf3 {[%emt 0:02:23]} 35. Qxf3 {[%emt 0:00:05]} Qxf3 {[%emt 0:01:49]} 36. Bxf3 {[%emt 0:00:01]} Bc6 {[%emt 0:00:19]} 37. Rc1 {[%emt 0:01:20]} Re5 {[%emt 0:02:30]} 38. Rc4 {[%emt 0:00:29]} f5 {[%emt 0:01:50]} 39. Rd4 {[%emt 0:00:30]} Rc5 {[%emt 0:01:16]} 40. g4 {[%emt 0:00:28]} Rc1+ {[%emt 0:01:10]} 41. Kg2 {[%emt 0:00:29]} Rc2 {[%emt 0:00:33]} 42. Bxe4 {[%emt 0:01:09]} fxe4 {[%emt 0:01:17]} 43. Rb4 {[%emt 0:00:00]} b5 {[%emt 0:00:34]} 44. Kg3 {[%emt 0:00:00]} Kf7 {[%emt 0:00:15]} 45. a3 {[%emt 0:00:15]} Kf6 {[%emt 0:00:21]} 46. Rb3 {[%emt 0:00:18]} Kg5 {[%emt 0:00:36]} 47. Rb4 {[%emt 0:00:14]} Rc1 {[%emt 0:00:29]} 48. b3 {[%emt 0:00:59]} Rb1 {[%emt 0:01:14]} 49. Kh3 {[%emt 0:00:14]} Ra1 {[%emt 0:00:37]} 50. a4 {[%emt 0:00:01]} bxa4 {[%emt 0:00:11]} 51. bxa4 {[%emt 0:00:01]} Rxa4 {[%emt 0:00:11]} 52. Rb1 {[%emt 0:00:09]} Rc4 {[%emt 0:00:39]} 53. Kg3 {[%emt 0:00:09]} b5 {[%emt 0:00:22]} 54. Rh1 {[%emt 0:00:05]} b4 {[%emt 0:01:05]} 55. Rh8 {[%emt 0:00:03]} b3 {[%emt 0:01:27]} 56. Rg8+ {[%emt 0:00:03]} Kf6 {[%emt 0:00:13]} 57. Rb8 {[%emt 0:00:02]} Ba4 {[%emt 0:00:22]} 58. Kf4 {[%emt 0:00:07]} Rc5 {[%emt 0:00:18]} 59. g5+ {[%emt 0:01:28]} Ke7 {[%emt 0:02:04]} 60. Rb7+ {[%emt 0:00:54]} Kf8 {[%emt 0:01:25]} 61. Rb8+ {[%emt 0:00:17]} Kg7 {[%emt 0:00:31]} 62. Rb7+ {[%emt 0:00:37]} Kg6 {[%emt 0:00:23]} 63. Rb6+ {[%emt 0:00:52]} Bc6 {[%emt 0:00:36]} 64. Rxb3 {[%emt 0:00:30]} Rf5+ {[%emt 0:00:11]} 65. Kg3 {[%emt 0:00:21]} Kxg5 {[%emt 0:00:47]} 66. Rb8 {[%emt 0:00:41]} Rc5 {[%emt 0:00:32]} 67. Rc8 {[%emt 0:01:42]} Kf5 {[%emt 0:00:21]} 68. Rh8 {[%emt 0:00:28]} Rc2 {[%emt 0:00:40]} 69. Rd8 {[%emt 0:00:31]} Rc1 {[%emt 0:00:20]} 70. Kg2 {[%emt 0:00:09]} Ke5 {[%emt 0:00:35]} 71. Rh8 {[%emt 0:01:03]} Kd6 {[%emt 0:00:35]} 72. Rh5 {[%emt 0:00:38]} Bd5 {[%emt 0:00:20]} 73. Kg3 {[%emt 0:00:05]} Rg1+ {[%emt 0:00:29]} 74. Kh2 {[%emt 0:00:15]} Rg6 {[%emt 0:00:13]} 75. Rf5 {[%emt 0:00:18]} Ke6 {[%emt 0:00:57]} 76. Rh5 {[%emt 0:00:02]} Rf6 {[%emt 0:00:11]} 77. Kg3 {[%emt 0:00:16]} Bc4 {[%emt 0:00:45]} 78. Rc5 {[%emt 0:00:45]} Be2 {[%emt 0:00:26]} 79. Rc6+ {[%emt 0:00:40]} Kf7 {[%emt 0:00:07]} 80. Rc7+ {[%emt 0:00:27]} Kg6 {[%emt 0:00:10]} 81. Rc8 {[%emt 0:00:06]} Bf3 {[%emt 0:00:44]} 82. Rc5 {[%emt 0:00:57]} Rf5 {[%emt 0:00:58]} 83. Rc6+ {[%emt 0:00:26]} Kh5 {[%emt 0:00:08]} 84. Rc7 {[%emt 0:01:30]} Rg5+ {[%emt 0:00:17]} 85. Kh3 {[%emt 0:00:34]} Bg2+ {[%emt 0:00:41]} 86. Kh2 {[%emt 0:00:17]} Bf1 {[%emt 0:00:49]} 87. Re7 {[%emt 0:00:50]} Rg4 {[%emt 0:00:46]} 88. Re8 {[%emt 0:00:50]} Bg2 {[%emt 0:00:29]} 89. Rh8+ {[%emt 0:00:04]} Kg5 {[%emt 0:00:14]} 90. Rg8+ {[%emt 0:00:07]} Kf5 {[%emt 0:00:06]} 91. Rxg4 {[%emt 0:00:03]} Kxg4 {[%emt 0:00:07]} 92. Kxg2 {[%emt 0:00:07]} Kf5 {[%emt 0:01:01]} 93. Kh3 {[%emt 0:00:10]} Kg5 {[%emt 0:00:56]} 94. Kg3 {[%emt 0:00:02]} Kf5 {[%emt 0:00:29]} 95. Kh4 {[%emt 0:00:07]} Ke6 {[%emt 0:00:36]} 96. Kg4 {[%emt 0:00:11]} Ke5 {[%emt 0:00:18]} 97. Kg5 {[%emt 0:00:06]} Ke6 {[%emt 0:00:08]} 98. Kf4 {[%emt 0:00:07]} Kd5 {[%emt 0:00:12]} 99. Kf5 {[%emt 0:00:02]} Kd6 {[%emt 0:00:59]} 100. Kxe4 {[%emt 0:00:05]} 1-0

[Event "1st SOA-GM Festival 2024"]
[Site "Bhubaneswar"]
[Date "2024.02.02"]
[Round "8.16"]
[White "Patil Priyanshu"]
[Black "Roy Chowdhury, Saptarshi"]
[Result "0-1"]
[ECO "B32"]
[WhiteElo "2022"]
[BlackElo "2233"]
[Annotator "RC"]
[PlyCount "126"]
[EventDate "2024.02.01"]
[EventType "swiss"]
[EventCountry "IND"]
[SourceTitle "playchess.com"]
[Source "ChessBase"]
[SourceQuality "1"]
[TimeControl "5400+30"]

1. e4 {[%emt 0:00:34]} c5 {[%emt 0:00:56]} 2. Nf3 {[%emt 0:00:02]} Nc6 {[%emt 0:00:04]} 3. d4 {[%emt 0:00:06]} cxd4 {[%emt 0:00:05]} 4. Nxd4 {[%emt 0:00:03]} e5 {[%emt 0:00:07]} 5. Nb5 {[%emt 0:00:03]} d6 {[%emt 0:00:05]} 6. N1c3 {[%emt 0:00:10]} a6 {[%emt 0:00:04]} 7. Na3 {[%emt 0:00:03]} Be7 {[%emt 0:00:15]} 8. Nc4 {[%emt 0:00:17]} b5 {[%emt 0:00:27]} 9. Ne3 {[%emt 0:00:05]} Nf6 {[%emt 0:00:06]} 10. Bd3 {[%emt 0:00:08]} O-O {[%emt 0:00:08]} 11. a4 {[%emt 0:00:04]} b4 {[%emt 0:02:23]} 12. Ncd5 {[%emt 0:00:39]} Rb8 {[%emt 0:01:39]} 13. O-O {[%emt 0:04:23]} Nxd5 {[%emt 0:10:51]} 14. exd5 {[%emt 0:04:04]} Na5 {[%emt 0:00:03]} 15. f4 {[%emt 0:01:13]} exf4 {[%emt 0:05:46]} 16. Rxf4 {[%emt 0:00:34]} g6 {[%emt 0:00:12]} 17. Qf1 {[%emt 0:27:14]} Bg5 {[%emt 0:12:01]} 18. Rf2 {[%emt 0:01:05]} f5 {[%emt 0:09:53]} 19. Nc4 {[%emt 0:15:05]} Bf6 {[%emt 0:03:31]} 20. Be3 {[%emt 0:02:08]} Nxc4 {[%emt 0:00:26]} 21. Bxc4 {[%emt 0:00:01]} Bxb2 {[%emt 0:02:55]} 22. Rb1 {[%emt 0:00:21]} Bc3 {[%emt 0:01:07]} 23. Bxa6 {[%emt 0:01:27]} Re8 {[%emt 0:01:30]} 24. Bxc8 {[%emt 0:00:51]} Rxc8 {[%emt 0:01:34]} 25. Qd3 {[%emt 0:01:19]} Qa5 {[%emt 0:04:53]} 26. Bf4 {[%emt 0:06:42]} Re4 {[%emt 0:04:47]} 27. Kh1 {[%emt 0:05:43]} Qxa4 {[%emt 0:03:27]} 28. Bxd6 {[%emt 0:00:35]} Qa2 {[%emt 0:01:06]} 29. Rff1 {[%emt 0:02:34]} Rd8 {[%emt 0:04:13]} 30. Qb5 {[%emt 0:00:41]} Qxc2 {[%emt 0:15:11]} 31. Qb6 {[%emt 0:07:10]} Rde8 {[%emt 0:01:06]} 32. Bg3 {[%emt 0:00:35]} Qa4 {[%emt 0:13:00]} 33. Qc7 {[%emt 0:02:38]} R4e7 {[%emt 0:00:39]} 34. Qc4 {[%emt 0:00:50]} Re4 {[%emt 0:00:29]} 35. Qc7 {[%emt 0:00:11]} R8e7 {[%emt 0:00:18]} 36. Qb6 {[%emt 0:02:30]} Qa7 {[%emt 0:00:33]} 37. Qc6 {[%emt 0:01:07]} Qb7 {[%emt 0:00:42]} 38. Qc5 {[%emt 0:00:37]} Qa7 {[%emt 0:00:38]} 39. Qc6 {[%emt 0:00:50]} Qd7 {[%emt 0:00:12]} 40. Qc5 {[%emt 0:00:39]} h5 {[%emt 0:01:34]} 41. Qb6 {[%emt 0:01:36]} Kh7 {[%emt 0:00:20]} 42. Bd6 {[%emt 0:07:24]} Rf7 {[%emt 0:01:00]} 43. Bxb4 {[%emt 0:01:37]} Bxb4 {[%emt 0:00:04]} 44. Rxb4 {[%emt 0:00:03]} Rxb4 {[%emt 0:00:05]} 45. Qxb4 {[%emt 0:00:03]} Qxd5 {[%emt 0:00:05]} 46. Qf4 {[%emt 0:00:23]} Re7 {[%emt 0:00:33]} 47. h3 {[%emt 0:00:39]} Re2 {[%emt 0:00:31]} 48. Qf3 {[%emt 0:01:08]} Re4 {[%emt 0:00:43]} 49. Qc3 {[%emt 0:00:19]} Re2 {[%emt 0:00:59]} 50. Qf3 {[%emt 0:00:05]} Qxf3 {[%emt 0:00:23]} 51. Rxf3 {[%emt 0:00:01]} Kg7 {[%emt 0:00:08]} 52. Kh2 {[%emt 0:00:55]} Kf6 {[%emt 0:00:07]} 53. h4 {[%emt 0:00:51]} Ke5 {[%emt 0:00:42]} 54. Rg3 {[%emt 0:00:28]} Kf6 {[%emt 0:00:04]} 55. Rf3 {[%emt 0:00:31]} Rd2 {[%emt 0:00:29]} 56. Kh3 {[%emt 0:00:15]} Ke5 {[%emt 0:00:17]} 57. g3 {[%emt 0:01:28]} Ke4 {[%emt 0:00:03]} 58. Ra3 {[%emt 0:00:05]} Rd3 {[%emt 0:02:12]} 59. Ra6 {[%emt 0:00:47]} f4 {[%emt 0:00:57]} 60. Rxg6 {[%emt 0:00:05]} f3 {[%emt 0:00:08]} 61. Re6+ {[%emt 0:00:30]} Kf5 {[%emt 0:00:39]} 62. Re8 {[%emt 0:00:39]} Rd1 {[%emt 0:00:23]} 63. Re3 {[%emt 0:00:58]} Rh1# {[%emt 0:00:30]} 0-1